bitfinex/quotes_ETHUSD_20241004
["timestamp","ask_amount","ask_price","bid_price","bid_amount"]
[1728002892131,4.25442,2350.5,2350.1,0.8062]
[1728002892522,7.25424,2350.6,2350.1,5.06121]
[1728002894612,0.44530262,2350.7,2350.2,0.8062]
[1728002894816,0.44530262,2350.7,2350.5,4.25432]
[1728002895050,0.44530262,2350.7,2350.6,0.8062]
[1728002895250,4.25356,2351.0,2350.6,0.8062]
[1728002895556,4.25356,2351.0,2350.6,1.32076015]
[1728002896062,3.44527165,2351.1,2350.7,4.25394]
[1728002896216,3.44527165,2351.1,2350.8,0.8062]
[1728002896415,3.0,2351.1,2350.8,0.8062]
[1728002897157,4.25334,2351.1,2350.8,0.8062]
[1728002897521,4.25334,2351.1,2350.8,1.32072214]
[1728002898216,4.25351,2351.0,2350.8,0.8062]
[1728002898414,8.5068,2351.1,2350.8,0.8062]
[1728002898646,4.25334,2351.1,2350.8,0.8062]
[1728002899062,8.50677,2351.1,2350.8,0.8062]
[1728002899805,4.25353,2351.0,2350.8,0.8062]
[1728002900095,4.25353,2351.0,2350.3,0.8062]
[1728002900096,4.25415,2350.7,2350.3,0.8062]
[1728002900301,0.7765,2351.1,2350.3,0.8062]
[1728002900602,0.7765,2351.1,2350.1,0.89293539]
[1728002900603,4.25343,2351.1,2350.5,0.8062]
[1728002900808,4.25343,2351.1,2350.7,0.8062]
[1728002901211,4.25369,2350.9,2350.7,0.8062]
[1728002904082,4.2536,2351.0,2350.5,5.06052]
[1728002904380,7.25308,2351.3,2350.7,4.2539]
[1728002904702,4.25308,2351.3,2350.9,0.8062]
[1728002905196,4.25316,2351.2,2350.9,0.8062]
[1728002905399,4.25308,2351.3,2350.9,0.8062]
[1728002905400,4.25334,2351.1,2350.9,0.8062]
[1728002906783,4.25314,2351.2,2350.9,0.8062]
[1728002907207,3.0,2351.4,2350.9,1.737597]
[1728002907408,4.25329,2351.2,2350.9,0.8062]
[1728002907733,4.25306,2351.3,2350.9,0.8062]
[1728002909223,8.50614,2351.3,2350.9,0.8062]
[1728002909426,8.50614,2351.3,2350.9,0.80507787]
[1728002910109,4.25326,2351.2,2350.9,0.80507787]
[1728002910319,4.25326,2351.2,2350.5,0.89293539]
[1728002910320,0.7765,2351.2,2350.5,0.89293539]
[1728002910518,0.7765,2351.2,2350.2,0.89293539]
[1728002910519,4.25441,2350.5,2350.2,0.89293539]
[1728002910726,4.25441,2350.5,2350.1,0.89293539]
[1728002911032,4.25488,2350.3,2349.9,0.89293539]
[1728002911323,4.25515,2350.1,2349.7,0.89293539]
[1728002911685,4.25518,2350.1,2349.6,0.89293539]
[1728002911887,4.25553,2349.9,2349.5,0.89293539]
[1728002912192,4.25553,2349.9,2349.5,1.72038632]
[1728002912420,4.25534,2350.0,2349.6,0.8062]
[1728002913286,4.25518,2350.1,2349.6,0.8062]
[1728002913486,6.25542,2350.0,2349.6,0.8062]
[1728002913734,2.0,2350.0,2349.6,0.8062]
[1728002914106,2.0,2350.0,2349.7,4.25583]
[1728002914339,2.0,2350.0,2349.8,5.05215]
[1728002914489,2.0,2350.0,2349.9,4.2555]
[1728002917038,2.0,2350.0,2349.9,5.13710261]
[1728002917244,2.0,2350.0,2349.9,5.052]
[1728002917529,2.0,2350.0,2349.9,1.95049885]
[1728002917734,2.0,2350.0,2349.9,0.7965]
[1728002918094,2.0,2350.0,2349.7,0.7965]
[1728002918333,2.0,2350.0,2349.8,4.25553]
[1728002918542,2.0,2350.0,2349.9,4.2555]
[1728002918694,2.0,2350.0,2349.9,5.052]
[1728002919101,2.0,2350.0,2349.9,5.982753]
[1728002919699,2.0,2350.0,2349.9,1.727253]
[1728002920038,2.0,2350.0,2349.9,0.7965]
[1728002922769,2.0,2350.0,2349.9,5.13710529]
[1728002922938,2.0,2350.0,2349.9,0.7965]
[1728002923340,2.0,2350.0,2349.7,0.7965]
[1728002923554,2.0,2350.0,2349.7,5.05235]
[1728002924353,2.0,2350.0,2349.8,4.25559]
[1728002924556,2.0,2350.0,2349.8,5.186394]
[1728002925398,2.0,2350.0,2349.8,4.25559]
[1728002927166,2.0,2350.0,2349.7,5.05234]
[1728002928287,2.0,2350.0,2349.7,0.7965]
[1728002929107,2.0,2350.0,2349.7,5.05232]
[1728002929609,2.0,2350.0,2349.9,4.2555]
[1728002929899,2.0,2350.0,2349.9,5.99667897]
[1728002935125,2.0,2350.0,2349.9,1.74117897]
[1728002935412,2.0,2350.0,2349.9,0.8019]
[1728002935791,2.0,2350.0,2349.9,5.0574]
[1728002937388,2.0,2350.0,2349.8,4.25552]
[1728002938203,2.0,2350.0,2349.8,8.51111]
[1728002938516,2.0,2350.0,2349.9,4.2555]
[1728002940296,2.0,2350.0,2349.7,4.25584]
[1728002940618,2.7874,2350.0,2349.6,4.2559]
[1728002941421,2.0,2350.0,2349.9,4.2555]
[1728002942087,2.0,2350.0,2349.7,4.25576]
[1728002942293,2.0,2350.0,2349.8,4.25565]
[1728002944135,2.0,2350.0,2349.9,5.0111]
[1728002947189,2.0,2350.0,2349.8,4.25565]
[1728002947396,2.0,2350.0,2349.6,4.25592]
[1728002947629,2.0,2350.0,2349.7,4.25581]
[1728002948047,2.0,2350.0,2349.6,4.25592]
[1728002948048,3.131805,2350.0,2349.6,4.25592]
[1728002948244,3.131805,2350.0,2349.6,4.25604]
[1728002949609,3.131805,2350.0,2349.7,4.25586]
[1728002949808,3.131805,2350.0,2349.6,4.25604]
[1728002950247,7.387155,2350.0,2349.6,4.25604]
[1728002950450,5.0635,2349.8,2349.4,4.25628]
[1728002951543,0.8078,2349.8,2349.4,4.25628]
[1728002951758,4.25596,2349.7,2349.2,4.25666]
[1728002951909,4.25611,2349.6,2349.1,4.25685]
[1728002952113,0.8078,2349.5,2349.1,4.25685]
[1728002953105,5.06402,2349.5,2349.0,4.25702]
[1728002953305,0.4453813,2349.7,2348.7,0.8913665]
[1728002953306,0.8078,2349.4,2348.7,0.8913665]
[1728002953519,0.8078,2349.0,2348.6,4.25779]
[1728002953711,0.506484,2348.9,2348.4,8.2156]
[1728002953939,0.8078,2349.0,2348.7,4.25756]
[1728002954139,0.8078,2349.0,2348.8,4.25748]
[1728002954845,3.0,2349.2,2348.9,4.25718]
[1728002954846,0.8078,2349.2,2348.9,4.25718]
[1728002956459,5.0643,2349.4,2348.9,4.25718]
[1728002958169,5.0643,2349.4,2348.9,4.34232025]
[1728002958364,0.8078,2349.4,2349.0,4.25711]
[1728002959628,5.06422,2349.4,2348.9,0.52115599]
[1728002959834,5.06422,2349.4,2348.9,4.25729]
[1728002960970,0.8078,2349.4,2348.9,4.25729]
[1728002963163,0.8078,2349.4,2349.0,4.25701]
[1728002965040,0.8078,2349.4,2348.9,4.25721]
[1728002965977,0.8078,2349.4,2349.0,4.25698]
[1728002967933,1.25301072,2349.4,2349.0,4.25698]
[1728002968749,2.10392579,2349.4,2348.7,4.25756]
[1728002968957,2.10392579,2349.4,2348.6,11.71784]
[1728002968958,4.25695,2349.1,2348.6,11.71784]
[1728002969270,4.25716,2349.0,2348.6,7.46]
[1728002969580,0.8078,2348.9,2348.6,7.46]
[1728002969986,5.06512,2348.9,2348.6,7.46]
[1728002970310,0.44520998,2350.1,2347.9,4.259]
[1728002970311,4.25842,2348.3,2347.9,4.259]
[1728002970574,4.25842,2348.3,2347.7,4.25934]
[1728002970778,5.06642,2348.2,2347.7,4.25934]
[1728002970943,0.8078,2348.2,2347.8,4.25929]
[1728002971145,0.8078,2348.2,2347.9,4.2591]
[1728002971340,0.8078,2348.2,2347.7,8.51869]
[1728002971540,0.8078,2348.2,2347.9,4.25912]
[1728002974195,0.8078,2348.2,2347.7,5.186739]
[1728002974494,4.25879,2348.1,2347.6,4.25951]
[1728002974871,4.25879,2348.1,2347.7,4.25947]
[1728002975067,0.8078,2348.2,2347.7,4.25947]
[1728002975307,5.06638,2348.2,2347.7,4.25947]
[1728002975502,4.25877,2348.1,2347.7,4.25947]
[1728002975815,1.74028,2348.2,2347.7,4.25931]
[1728002976004,0.8078,2348.2,2347.8,4.25929]
[1728002976601,0.8078,2348.2,2347.9,4.25901]
[1728002976896,0.8078,2348.2,2347.8,4.25921]
[1728002978370,0.8078,2348.2,2347.6,4.25952]
[1728002978708,4.25878,2348.1,2347.6,4.25952]
[1728002979063,0.8078,2348.2,2347.6,4.25952]
[1728002979265,0.8078,2348.2,2347.7,4.25947]
[1728002979699,5.06639,2348.2,2347.7,4.25947]
[1728002980687,4.25859,2348.2,2347.7,4.25947]
[1728002981405,8.517,2348.3,2347.8,5.111179]
[1728002981781,4.25847,2348.3,2347.8,5.111179]
[1728002982116,4.25847,2348.3,2347.8,4.25928]
[1728002982891,8.51704,2348.3,2347.8,4.25928]
[1728002983813,4.25923,2347.9,2347.4,4.25989]
[1728002984036,4.25949,2347.7,2347.2,4.26024]
[1728002984181,4.25988,2347.5,2347.0,4.26063]
[1728002984576,4.26022,2347.3,2346.8,4.261]
[1728002985479,4.26022,2347.3,2346.8,4.26112]
[1728002986189,7.25993,2347.5,2346.8,4.26102]
[1728002986402,2.0,2347.3,2346.9,4.26091]
[1728002986578,2.0,2347.3,2346.8,4.26102]
[1728002986785,5.0,2347.3,2346.8,8.52204]
[1728002986982,5.0,2347.3,2346.9,4.26089]
[1728002987475,2.0,2347.3,2346.9,4.26088]
[1728002988220,2.0,2347.3,2346.9,4.26084]
[1728002989912,2.0,2347.3,2346.9,4.26079]
[1728002990239,2.0,2347.3,2347.0,4.26065]
[1728002990440,2.0,2347.3,2347.1,4.26057]
[1728002991314,2.0,2347.3,2346.8,4.26096]
[1728002991519,6.2603,2347.3,2346.8,4.26096]
[1728002992042,6.2603,2347.3,2346.8,8.52199]
[1728002992247,6.2603,2347.3,2346.8,4.26096]
[1728002992520,2.0,2347.3,2346.8,4.26096]
[1728002992721,6.26023,2347.3,2346.8,4.26096]
[1728002993253,6.26023,2347.3,2346.8,8.52197]
[1728002993551,6.26023,2347.3,2346.8,4.26096]
[1728002994337,6.26023,2347.3,2346.8,8.52199]
[1728002994724,7.312265,2347.3,2346.8,4.26096]
[1728002995015,3.052035,2347.3,2346.8,4.26096]
[1728002995732,3.052035,2347.3,2346.8,8.52197]
[1728002996029,2.0,2347.3,2346.8,4.26096]
[1728002996228,2.0,2347.3,2346.8,8.52199]
[1728002996740,2.0,2347.3,2346.8,4.26096]
[1728002997118,2.0,2347.3,2347.0,4.26072]
[1728002997630,2.0,2347.3,2346.9,4.26087]
[1728003000668,2.0,2347.3,2347.0,4.26058]
[1728003000962,2.0,2347.3,2347.1,4.26057]
[1728003001633,2.0,2347.3,2347.0,4.26058]
[1728003001832,2.0,2347.3,2347.2,4.26039]
[1728003002054,2.0,2347.3,2347.1,4.26056]
[1728003002218,2.0,2347.3,2347.2,4.26039]
[1728003003054,2.0,2347.3,2347.0,4.26069]
[1728003003249,2.0,2347.3,2347.0,8.947369]
[1728003003456,2.0,2347.3,2347.1,4.26052]
[1728003004776,2.0,2347.3,2347.2,4.26039]
[1728003005132,2.0,2347.3,2347.2,7.81039]
[1728003005333,2.0,2347.3,2347.2,8.28547724]
[1728003005650,2.0,2347.3,2347.2,10.32558115]
[1728003005971,2.0,2347.3,2347.2,9.89858115]
[1728003006135,2.0,2347.3,2347.2,10.32558115]
[1728003006474,2.0,2347.3,2347.2,12.10184592]
[1728003007247,2.0,2347.3,2347.2,12.72549052]
[1728003007587,2.0,2347.3,2347.2,12.72590081]
[1728003008083,2.0,2347.3,2347.2,11.71235923]
[1728003008381,2.0,2347.3,2347.2,13.16888273]
[1728003008546,1.41638839,2347.3,2347.2,13.16888273]
[1728003008754,1.41638839,2347.3,2347.2,13.61260162]
[1728003008755,1.06229129,2347.3,2347.2,13.61260162]
[1728003008951,1.06229129,2347.3,2347.2,13.61410136]
[1728003009247,11.5675,2348.8,2347.2,13.61410136]
[1728003009248,11.5675,2348.8,2348.2,8.51699]
[1728003009460,0.44531446,2348.8,2348.4,4.25821]
[1728003009668,0.57181446,2348.8,2348.4,8.51632]
[1728003009871,0.57181446,2348.8,2348.4,4.25811]
[1728003010182,4.82931446,2348.8,2348.2,8.51689]
[1728003010334,0.57181446,2348.8,2348.4,4.2582]
[1728003010737,0.57181446,2348.8,2348.2,4.25844]
[1728003010738,4.82930446,2348.8,2348.2,8.51684]
[1728003010967,0.57181446,2348.8,2348.3,4.25824]
[1728003011174,0.57181446,2348.8,2348.4,4.34333877]
[1728003011393,0.57181446,2348.8,2348.7,4.25767]
[1728003011538,0.1265,2348.8,2348.7,4.25767]
[1728003011757,0.1265,2348.8,2348.6,4.25783]
[1728003012256,0.1265,2348.8,2348.5,4.25803]
[1728003012458,0.1265,2348.8,2348.2,4.25846]
[1728003012757,0.1265,2348.8,2348.3,4.25836]
[1728003012758,4.384,2348.8,2348.3,4.25836]
[1728003012957,0.1265,2348.8,2348.3,4.25836]
[1728003013694,0.1265,2348.8,2348.4,4.25818]
[1728003013853,0.1265,2348.8,2348.3,4.25827]
[1728003015301,0.1265,2348.8,2348.5,4.25801]
[1728003015511,0.1265,2348.8,2348.6,4.34299587]
[1728003015660,0.1265,2348.8,2348.7,4.34281622]
[1728003016662,0.1265,2348.8,2348.7,4.25767]
[1728003017000,0.1265,2348.8,2348.6,4.25784]
[1728003017495,0.1265,2348.8,2348.6,8.51558]
[1728003017701,0.1265,2348.8,2348.6,4.25774]
[1728003017885,0.1265,2348.8,2348.6,8.5155]
[1728003018272,0.1265,2348.8,2348.6,4.25774]
[1728003018477,0.1265,2348.8,2348.7,4.25767]
[1728003024262,0.1265,2348.8,2348.6,4.25774]
[1728003024421,0.1265,2348.8,2348.7,4.25767]
[1728003026248,0.1265,2348.8,2348.6,4.25774]
[1728003026445,0.1265,2348.8,2348.6,8.51547]
[1728003026651,0.1265,2348.8,2348.7,4.25767]
[1728003027265,0.1265,2348.8,2348.6,4.25773]
[1728003027472,0.794,2348.7,2348.6,4.25773]
[1728003029143,0.794,2348.7,2348.5,4.25801]
[1728003029334,0.794,2348.7,2348.5,4.25792]
[1728003029531,0.794,2348.7,2348.6,4.25785]
[1728003029871,0.1265,2348.8,2348.7,4.25767]
[1728003031371,0.1265,2348.8,2348.6,4.25785]
[1728003033175,0.1265,2348.8,2348.6,8.5156]
[1728003033327,0.1265,2348.8,2348.6,4.25775]
[1728003034179,0.1265,2348.8,2348.6,8.5155]
[1728003034672,0.1265,2348.8,2348.6,4.25775]
[1728003034882,0.1265,2348.8,2348.6,8.51551]
[1728003035184,0.1265,2348.8,2348.6,4.25775]
[1728003035686,0.1265,2348.8,2348.6,8.51551]
[1728003036039,0.1265,2348.8,2348.6,4.25775]
[1728003036275,0.1265,2348.8,2348.6,4.25774]
[1728003036479,0.1265,2348.8,2348.7,4.25767]
[1728003036988,0.1265,2348.8,2348.6,4.25774]
[1728003037560,0.1265,2348.8,2348.6,8.51548]
[1728003038280,0.1265,2348.8,2348.6,4.25774]
[1728003038780,0.1265,2348.8,2348.6,8.51549]
[1728003039695,0.1265,2348.8,2348.6,4.25773]
[1728003039884,0.1265,2348.8,2348.7,4.25767]
[1728003041589,0.1265,2348.8,2348.6,4.25773]
[1728003041802,0.1265,2348.8,2348.7,4.25767]
[1728003044611,0.1265,2348.8,2348.6,5.14584056]
[1728003044813,0.1265,2348.8,2348.6,9.40361056]
[1728003045112,0.1265,2348.8,2348.7,4.25767]
[1728003045521,0.1265,2348.8,2348.7,5.14578056]
[1728003046875,0.1265,2348.8,2348.7,4.25767]
[1728003047227,0.1265,2348.8,2348.7,5.14578056]
[1728003047593,0.1265,2348.8,2348.7,4.25767]
[1728003047903,0.1265,2348.8,2348.6,5.93704056]
[1728003048414,0.1265,2348.8,2348.6,5.14584056]
[1728003048612,0.1265,2348.8,2348.6,4.25773]
[1728003049715,0.1265,2348.8,2348.6,8.5155]
[1728003050348,0.1265,2348.8,2348.6,9.40361056]
[1728003050757,0.1265,2348.8,2348.5,1.33216584]
[1728003050758,4.384,2348.8,2348.5,0.88811056]
[1728003050924,0.8027,2348.6,2348.3,5.14642056]
[1728003051119,4.25803,2348.5,2348.2,0.88811056]
[1728003051430,5.06057,2348.6,2348.1,5.59079584]
[1728003051431,4.25787,2348.6,2348.1,5.14685056]
[1728003051631,0.8027,2348.5,2348.1,5.14685056]
[1728003051831,1.360633,2348.5,2348.1,5.14685056]
[1728003052034,1.360633,2348.5,2348.1,4.25874]
[1728003052236,1.360633,2348.5,2348.1,5.23201834]
[1728003052237,0.8027,2348.5,2348.1,5.23201834]
[1728003052432,0.8027,2348.5,2348.1,5.14685056]
[1728003052620,0.8027,2348.5,2348.2,5.14654056]
[1728003052854,0.8027,2348.5,2348.2,4.25843]
[1728003053052,0.8027,2348.5,2348.2,5.14654056]
[1728003053583,0.8027,2348.5,2348.1,5.14685056]
[1728003053783,1.660618,2348.5,2348.1,5.14685056]
[1728003054144,1.660618,2348.5,2348.1,5.14674056]
[1728003054476,1.660618,2348.5,2348.1,4.25863]
[1728003054671,1.660618,2348.5,2348.1,5.14674056]
[1728003055452,1.660618,2348.5,2348.1,4.25863]
[1728003055675,1.660618,2348.5,2348.2,4.25856]
[1728003055838,1.660618,2348.5,2348.1,5.14674056]
[1728003056041,1.660618,2348.5,2348.1,9.40539056]
[1728003057337,1.660618,2348.5,2348.1,8.51728]
[1728003057537,1.660618,2348.5,2348.2,4.25857]
[1728003057959,0.8027,2348.5,2348.2,4.25857]
[1728003058169,0.8027,2348.7,2348.5,4.25791]
[1728003058377,0.1265,2348.8,2348.5,4.25791]
[1728003060280,0.1265,2348.8,2348.4,0.97326421]
[1728003060450,0.1265,2348.8,2348.6,5.03095]
[1728003060641,0.9292,2348.8,2348.6,4.25776]
[1728003060843,0.9292,2348.8,2348.4,5.14621056]
[1728003061245,0.9292,2348.8,2348.5,4.25786]
[1728003061485,0.1265,2348.8,2348.6,4.25783]
[1728003061689,0.1265,2348.8,2348.7,4.25767]
[1728003061988,0.1265,2348.8,2348.7,4.3428177]
[1728003062289,0.1265,2348.8,2348.7,6.44808354]
[1728003062494,0.1265,2348.8,2348.7,10.45895905]
[1728003062643,0.1265,2348.8,2348.7,10.38238064]
[1728003062848,0.1265,2348.8,2348.7,8.77389081]
[1728003063081,0.1265,2348.8,2348.7,6.99766969]
[1728003063381,0.1265,2348.8,2348.7,8.33841533]
[1728003066646,0.1265,2348.8,2348.7,15.89929084]
[1728003067058,0.1265,2348.8,2348.7,14.5585452]
[1728003069267,0.1265,2348.8,2348.7,9.99766969]
[1728003069453,0.1265,2348.8,2348.6,5.27546406]
[1728003069653,0.1265,2348.8,2348.7,4.25767]
[1728003070068,0.1265,2348.8,2348.6,5.27546406]
[1728003070268,0.9294,2348.8,2348.5,6.93858154]
[1728003070471,0.9294,2348.8,2348.6,4.25781]
[1728003070771,0.9294,2348.8,2348.5,6.93858154]
[1728003070979,0.9294,2348.8,2348.5,2.68056154]
[1728003071485,0.9294,2348.8,2348.5,6.93850154]
[1728003072792,0.9294,2348.8,2348.5,2.68056154]
[1728003073461,0.9294,2348.8,2348.5,6.93857154]
[1728003073692,0.9294,2348.8,2348.5,2.68056154]
[1728003074500,0.9294,2348.8,2348.5,6.93857154]
[1728003074973,0.9294,2348.8,2348.5,4.25801]
[1728003076011,0.1265,2348.8,2348.7,4.25767]
[1728003077375,0.1265,2348.8,2348.7,4.34281451]
[1728003077581,0.1265,2348.8,2348.7,4.25767]
[1728003079122,0.1265,2348.8,2348.7,4.34281436]
[1728003079420,0.1265,2348.8,2348.7,4.25767]
[1728003079622,0.1265,2348.8,2348.1,1.2272]
[1728003079912,5.06066,2348.7,2348.2,4.25844]
[1728003080215,5.06066,2348.7,2348.4,4.25804]
[1728003080216,0.8029,2348.7,2348.4,4.25804]
[1728003081425,0.8029,2348.7,2348.2,5.05862]
[1728003081711,4.25795,2348.6,2348.0,4.25881]
[1728003082021,0.8029,2348.5,2348.0,5.99564021]
[1728003082522,0.8029,2348.5,2348.0,10.25447021]
[1728003082724,0.8029,2348.5,2348.1,0.08516641]
[1728003082873,0.1265,2348.8,2348.4,4.25821]
[1728003083218,0.8029,2348.7,2348.3,4.25839]
[1728003083416,0.8029,2348.7,2348.3,8.51668]
[1728003084121,0.8029,2348.7,2348.3,4.25829]
[1728003084776,0.8029,2348.7,2348.5,4.25792]
[1728003085007,0.8029,2348.7,2348.3,4.25827]
[1728003085219,0.8029,2348.7,2348.3,8.51657]
[1728003085415,0.8029,2348.5,2348.1,5.15226964]
[1728003085623,0.8029,2348.5,2348.2,4.25856]
[1728003086981,0.8029,2348.5,2348.1,8.51729]
[1728003087327,0.8029,2348.5,2348.1,4.25864]
[1728003087823,0.8029,2348.5,2348.2,4.25858]
[1728003088588,0.8029,2348.7,2348.2,5.19966496]
[1728003088812,0.8029,2348.7,2348.2,5.28482543]
[1728003089012,0.8029,2348.7,2348.4,4.25821]
[1728003089222,0.8029,2348.7,2348.2,9.54326543]
[1728003089532,0.8029,2348.7,2348.2,9.45810496]
[1728003089686,0.8029,2348.7,2348.2,5.19952496]
[1728003090023,0.8029,2348.7,2348.2,5.28468538]
[1728003090318,0.8029,2348.7,2348.2,5.19952496]
[1728003090523,0.8029,2348.7,2348.2,5.28468546]
[1728003091220,0.8029,2348.7,2348.2,5.19952496]
[1728003092017,0.8029,2348.7,2348.3,4.25838]
[1728003092426,0.8029,2348.7,2348.2,5.19952496]
[1728003092632,3.8029,2348.6,2348.2,0.94108496]
[1728003092920,3.8029,2348.6,2348.1,4.25875]
[1728003093083,3.8029,2348.6,2348.2,4.34370057]
[1728003093424,3.8029,2348.6,2348.3,4.25838]
[1728003093425,0.8029,2348.6,2348.3,4.25838]
[1728003093623,0.8029,2348.6,2348.3,5.28799202]
[1728003094623,0.8029,2348.6,2348.3,1.02961202]
[1728003094825,0.8029,2348.6,2348.2,0.08516059]
[1728003096005,0.8029,2348.6,2348.2,4.34374059]
[1728003096323,0.8029,2348.6,2348.2,4.25858]
[1728003097027,0.8029,2348.6,2348.2,4.34374062]
[1728003097712,0.8029,2348.6,2348.3,4.25839]
[1728003098543,0.8029,2348.6,2348.1,5.15226964]
[1728003098951,0.8019,2348.5,2348.1,0.89362964]
[1728003099242,0.8019,2348.3,2347.9,5.15265964]
[1728003099836,0.8019,2348.3,2347.9,5.15261964]
[1728003100141,0.8019,2348.3,2348.0,4.90811641]
[1728003100343,0.8019,2348.3,2348.0,10.06058605]
[1728003100515,0.8019,2348.3,2347.9,0.89362964]
[1728003101149,0.8019,2348.3,2347.9,5.15271964]
[1728003102017,0.8019,2348.3,2348.0,4.34410232]
[1728003102217,0.8019,2348.3,2348.1,4.25863]
[1728003104028,0.8019,2348.3,2348.0,5.15255964]
[1728003104232,0.8019,2348.3,2348.0,0.89362964]
[1728003104408,0.8019,2348.3,2347.9,5.15268964]
[1728003105555,0.8019,2348.3,2347.9,0.89362964]
[1728003105756,4.70322374,2348.5,2347.8,0.89362964]
[1728003105757,0.8019,2347.9,2347.8,0.89362964]
[1728003105915,0.8019,2347.9,2347.6,0.89362964]
[1728003106109,3.0,2348.4,2347.5,0.89362964]
[1728003106110,4.25966,2347.6,2347.5,0.89362964]
[1728003106341,5.191748,2347.6,2347.1,0.89362964]
[1728003106656,0.8019,2347.7,2347.1,5.15402964]
[1728003107152,0.8019,2347.7,2347.2,4.26026]
[1728003107652,0.8019,2347.7,2347.1,4.2604]
[1728003107653,5.06152,2347.7,2347.1,4.2604]
[1728003107955,0.8019,2347.5,2347.0,5.15437964]
[1728003108116,5.06186,2347.5,2347.0,4.26075]
[1728003108450,5.06186,2347.5,2347.1,0.94151896]
[1728003108819,5.06186,2347.5,2347.2,4.26038]
[1728003108820,0.8019,2347.5,2347.2,4.26038]
[1728003109448,0.8019,2347.5,2347.1,5.20194896]
[1728003109962,0.8019,2347.5,2346.9,8.52157]
[1728003110259,0.8019,2347.5,2347.1,4.26051]
[1728003110725,0.8019,2347.5,2347.2,4.26036]
[1728003114050,0.8019,2347.5,2347.1,4.26051]
[1728003114263,0.8019,2347.5,2347.3,4.2602]
[1728003114755,4.2594,2347.8,2347.3,5.112181]
[1728003114756,0.7751,2347.8,2347.3,5.112181]
[1728003114928,0.7751,2347.8,2347.4,4.25993]
[1728003119762,0.7751,2347.8,2347.3,5.112181]
[1728003120059,5.03442,2347.8,2347.3,0.852071]
[1728003120382,5.03442,2347.8,2346.9,8.35362964]
[1728003120383,0.7751,2347.7,2347.2,4.26034]
[1728003121245,4.25942,2347.8,2347.1,4.26054]
[1728003121246,0.7751,2347.5,2347.1,4.26054]
[1728003121445,0.7751,2347.5,2346.9,8.2794]
[1728003121446,0.7751,2347.7,2347.2,5.19760845]
[1728003121760,0.7751,2347.7,2347.3,4.26017]
[1728003122275,0.7751,2347.7,2347.4,4.26]
[1728003122575,5.03423,2347.9,2347.4,4.25993]
[1728003122728,9.29346,2347.9,2347.3,8.52021]
[1728003122930,5.03423,2347.9,2347.3,8.52021]
[1728003123131,5.03423,2347.9,2347.3,9.454171]
[1728003123358,5.03423,2347.9,2347.3,0.933961]
[1728003123359,0.7751,2347.9,2347.3,0.933961]
[1728003123563,0.7751,2347.9,2347.5,4.25975]
[1728003124130,5.03427,2347.9,2347.3,9.454121]
[1728003124464,5.03427,2347.9,2347.3,9.454141]
[1728003124619,5.03427,2347.9,2347.4,4.25997]
[1728003124991,0.7751,2347.9,2347.3,5.194031]
[1728003125191,0.7751,2347.9,2347.5,4.25984]
[1728003126190,5.03431,2347.9,2347.3,9.454091]
[1728003126815,5.03431,2347.9,2347.3,4.26005]
[1728003126816,0.8273,2347.7,2347.3,4.26005]
[1728003127126,0.8273,2347.7,2347.2,4.26038]
[1728003127127,5.0868,2347.7,2347.2,4.26038]
[1728003127919,0.8273,2347.7,2347.3,4.26018]
[1728003128118,0.8273,2347.7,2347.2,4.26038]
[1728003128119,5.08681,2347.7,2347.2,4.26038]
[1728003128271,0.8273,2347.5,2347.1,4.26046]
[1728003128477,0.8273,2347.5,2347.3,4.2602]
[1728003130721,0.8273,2347.5,2347.1,4.765216]
[1728003130918,0.8273,2347.5,2347.1,4.26046]
[1728003131421,0.8273,2347.5,2347.1,8.52095]
[1728003131616,0.8273,2347.5,2347.2,4.26034]
[1728003131816,0.8273,2347.5,2347.1,4.26046]
[1728003132679,0.8273,2347.5,2347.2,4.26025]
[1728003132878,0.8273,2347.5,2347.3,4.26019]
[1728003133612,0.8273,2347.5,2347.3,8.5203]
[1728003133936,0.8273,2347.5,2347.3,4.26011]
[1728003134091,0.8273,2347.5,2347.3,8.52019]
[1728003134723,0.8273,2347.5,2347.3,4.26008]
[1728003138123,0.8273,2347.5,2346.9,5.78095648]
[1728003138422,0.8273,2347.4,2346.9,4.26083]
[1728003138583,0.8273,2347.4,2346.9,4.85498596]
[1728003140318,0.8273,2347.4,2347.0,4.26072]
[1728003140525,4.26021,2347.3,2346.7,1.52014897]
[1728003140828,0.8032,2347.2,2346.7,2.88483772]
[1728003141030,5.06359,2347.2,2346.7,7.14612772]
[1728003141180,5.06359,2347.2,2346.8,0.39155973]
[1728003141696,0.8032,2347.2,2346.8,0.39155973]
[1728003141900,4.26021,2347.3,2346.8,0.39155973]
[1728003141901,0.8032,2347.0,2346.8,0.39155973]
[1728003142128,3.8032,2347.4,2347.0,4.26061]
[1728003142364,0.8032,2347.4,2347.1,4.26046]
[1728003142683,0.44519179,2347.3,2347.1,4.26046]
[1728003142919,0.44519179,2347.3,2347.1,5.112567]
[1728003143935,7.31,2347.5,2347.2,5.05889]
[1728003144142,8.06284,2347.7,2347.2,5.14409205]
[1728003144143,5.06284,2347.7,2347.2,5.14409205]
[1728003144305,0.44517337,2347.6,2347.2,5.14409205]
[1728003144646,0.44517337,2347.6,2347.3,1.11503687]
[1728003144801,0.8032,2347.6,2347.1,6.00619664]
[1728003145128,5.06296,2347.6,2347.1,5.112567]
[1728003145537,0.8032,2347.6,2347.1,5.112567]
[1728003145833,0.8032,2347.6,2347.2,4.94085966]
[1728003146006,0.8032,2347.6,2347.2,4.26039]